bitfinex-derivatives/quotes_BTCF0:USTF0_20250724
["timestamp","ask_amount","ask_price","bid_price","bid_amount"]
[1753374789745,1.12134921,118730.0,118720.0,0.04897]
[1753374793246,0.53388753,118730.0,118720.0,0.48211]
[1753374793442,0.46497979,118730.0,118720.0,0.48211]
[1753374793649,0.98676979,118730.0,118720.0,0.48211]
[1753374793843,0.98676979,118730.0,118720.0,0.650481]
[1753374794544,0.19165299,118730.0,118720.0,1.68948668]
[1753374794847,0.2104168,118750.0,118740.0,0.6509126]
[1753374795049,0.7950947,118750.0,118740.0,0.6509126]
[1753374795248,0.75321993,118750.0,118740.0,1.63991828]
[1753374795549,0.06104707,118760.0,118750.0,0.6508984]
[1753374795841,0.81371359,118760.0,118750.0,1.41990408]
[1753374796048,0.81371359,118760.0,118750.0,1.66990408]
[1753374796049,0.26371359,118760.0,118750.0,1.66990408]
[1753374796239,0.73856359,118760.0,118750.0,1.66990408]
[1753374796646,0.73856359,118760.0,118750.0,1.67504033]
[1753374796850,0.73856359,118760.0,118750.0,1.4193144]
[1753374797043,0.73856359,118760.0,118750.0,1.83832008]
[1753374797243,1.6316697,118790.0,118770.0,0.252448]
[1753374797442,0.7945659,118780.0,118770.0,0.99145368]
[1753374797644,0.12553271,118780.0,118770.0,0.572448]
[1753374797840,0.7011791,118780.0,118770.0,0.52696934]
[1753374798048,0.7944059,118780.0,118770.0,0.56904414]
[1753374798247,0.91993861,118780.0,118770.0,0.56904414]
[1753374798749,0.75165271,118780.0,118770.0,1.23804982]
[1753374799047,0.29381861,118780.0,118770.0,1.23804982]
[1753374799248,0.29381861,118780.0,118770.0,1.19597502]
[1753374799546,0.29381861,118780.0,118770.0,0.77696934]
[1753374800148,0.29381861,118780.0,118770.0,0.94597502]
[1753374800354,0.29381861,118780.0,118770.0,1.19597502]
[1753374800647,0.29581861,118780.0,118770.0,1.19597502]
[1753374800848,0.29581861,118780.0,118770.0,0.77696934]
[1753374801048,0.29581861,118780.0,118770.0,1.19597502]
[1753374801348,0.29581861,118780.0,118770.0,0.94597502]
[1753374802544,0.12753271,118780.0,118770.0,0.94597502]
[1753374802739,0.12753271,118780.0,118770.0,1.36435902]
[1753374802940,0.12753271,118780.0,118770.0,1.98915902]
[1753374803145,0.0750591,118790.0,118780.0,0.58729158]
[1753374803340,0.0750591,118790.0,118780.0,0.90729158]
[1753374803552,0.20132839,118790.0,118780.0,1.32565958]
[1753374804257,0.0750591,118800.0,118790.0,0.1682718]
[1753374804448,0.0750591,118800.0,118790.0,0.96727748]
[1753374804644,0.16709571,118800.0,118790.0,1.38563748]
[1753374804848,0.26029421,118800.0,118790.0,1.38563748]
[1753374805247,0.33535331,118800.0,118790.0,1.38563748]
[1753374805448,0.26029421,118800.0,118790.0,1.38563748]
[1753374805648,0.09203661,118800.0,118790.0,2.01007748]
[1753374805848,0.09403661,118800.0,118790.0,2.01007748]
[1753374806054,0.26229421,118800.0,118790.0,2.00947748]
[1753374806356,0.09403661,118800.0,118790.0,2.00947748]
[1753374806755,0.11240894,118800.0,118790.0,2.00947748]
[1753374806958,0.17248676,118800.0,118790.0,2.00947748]
[1753374809156,0.11240894,118800.0,118790.0,2.00947748]
[1753374809357,0.11240894,118800.0,118790.0,0.96667748]
[1753374809553,0.11240894,118800.0,118790.0,1.58987748]
[1753374810649,0.11240894,118800.0,118790.0,1.1708718]
[1753374810951,0.11240894,118800.0,118790.0,1.58987748]
[1753374811155,0.11240894,118800.0,118790.0,1.1708718]
[1753374811655,0.28066654,118800.0,118790.0,1.58959748]
[1753374812062,0.34074436,118800.0,118790.0,1.58959748]
[1753374812258,0.38713436,118800.0,118790.0,0.2176718]
[1753374812561,0.83116564,118800.0,118790.0,0.1676718]
[1753374812758,0.83116564,118800.0,118790.0,0.5176718]
[1753374812959,1.45576564,118800.0,118790.0,0.12219967]
[1753374813150,1.49350944,118800.0,118790.0,0.1782718]
[1753374813352,1.53557674,118800.0,118790.0,0.1782718]
[1753374813756,1.49350944,118800.0,118790.0,0.1682718]
[1753374813952,1.53989944,118800.0,118790.0,0.1782718]
[1753374814253,1.53989944,118800.0,118790.0,0.01]
[1753374814651,1.95890512,118800.0,118790.0,0.01]
[1753374814956,0.7278732,118780.0,118770.0,0.1683001]
[1753374815156,1.59866636,118780.0,118760.0,0.1262334]
[1753374815354,0.27468724,118770.0,118760.0,0.6445477]
[1753374815554,0.29305957,118770.0,118760.0,0.6445477]
[1753374815756,0.35871669,118770.0,118760.0,1.06355338]
[1753374815957,0.19041659,118770.0,118760.0,1.06355338]
[1753374816157,0.35871669,118770.0,118760.0,1.06355338]
[1753374816850,0.35871669,118770.0,118760.0,1.06455338]
[1753374817550,0.19041659,118770.0,118760.0,1.06455338]
[1753374817757,0.14402659,118770.0,118760.0,1.06455338]
[1753374817947,0.31232669,118770.0,118760.0,1.06455338]
[1753374818150,0.38535549,118770.0,118760.0,1.06355338]
[1753374818350,0.38535549,118770.0,118760.0,1.06455338]
[1753374818754,0.21705539,118770.0,118760.0,1.06455338]
[1753374819058,0.38535549,118770.0,118760.0,0.6455477]
[1753374819651,0.38535549,118770.0,118760.0,0.6034695]
[1753374819857,1.94192933,118770.0,118760.0,0.351]
[1753374820356,2.00192647,118770.0,118760.0,0.3093143]
[1753374820652,1.58292079,118770.0,118760.0,0.3093143]
[1753374821452,1.58292079,118770.0,118760.0,0.1693143]
[1753374821656,1.35462355,118770.0,118760.0,0.4993143]
[1753374821861,1.52292365,118770.0,118760.0,0.3293143]
[1753374822161,1.52292365,118770.0,118760.0,0.35194303]
[1753374824460,0.72334355,118770.0,118760.0,0.35194303]
[1753374824656,1.17797365,118770.0,118760.0,0.34194303]
[1753374824851,1.41197365,118770.0,118760.0,0.19194303]
[1753374825056,1.41197365,118770.0,118760.0,0.33194303]
[1753374825763,1.41197365,118770.0,118760.0,0.35194303]
[1753374826656,1.8988942,118770.0,118760.0,0.02362873]
[1753374827060,1.8988942,118770.0,118760.0,0.001]
[1753374830164,1.47988852,118770.0,118760.0,0.001]
[1753374830357,0.08109,118750.0,118740.0,0.24059685]
[1753374830564,1.39660779,118750.0,118740.0,0.59219685]
[1753374830760,1.52352869,118750.0,118740.0,0.59219685]
[1753374833067,1.52352869,118750.0,118740.0,0.59519685]
[1753374833764,1.52352869,118750.0,118740.0,0.59219685]
[1753374833964,1.52552869,118750.0,118740.0,0.59219685]
[1753374835860,1.52552869,118750.0,118740.0,1.01220253]
[1753374835861,1.3992594,118750.0,118740.0,1.01220253]
[1753374836259,1.3992594,118750.0,118740.0,0.59319685]
[1753374836455,1.3992594,118750.0,118740.0,0.98203088]
[1753374836666,1.3992594,118750.0,118740.0,1.02727015]
[1753374836864,1.94453437,118750.0,118740.0,0.03024827]
[1753374837863,0.3599826,118740.0,118730.0,0.07548754]
[1753374838064,0.76798189,118740.0,118730.0,0.40548754]
[1753374838373,2.39466805,118740.0,118730.0,0.40548754]
[1753374838855,2.39466805,118740.0,118730.0,0.57384434]
[1753374839359,2.39466805,118740.0,118730.0,0.52860507]
[1753374839555,2.39466805,118740.0,118730.0,0.40548754]
[1753374839865,0.89466805,118740.0,118730.0,0.57384434]
[1753374840267,0.6417268,118730.0,118720.0,0.04523927]
[1753374840570,3.01938313,118730.0,118720.0,0.57361027]
[1753374840760,2.89311384,118730.0,118720.0,0.57521027]
[1753374840960,2.89311384,118730.0,118720.0,0.94897668]
[1753374841262,0.69945384,118730.0,118720.0,0.530971]
[1753374841562,0.69945384,118730.0,118720.0,0.94997668]
[1753374841563,0.17407704,118730.0,118720.0,0.94997668]
[1753374841962,0.16834,118750.0,118730.0,0.0016]
[1753374842170,0.2581526,118750.0,118740.0,0.2011957]
[1753374842371,0.34205632,118750.0,118740.0,0.94020138]
[1753374842571,0.17371632,118750.0,118740.0,0.95532793]
[1753374843071,0.34204482,118750.0,118740.0,0.95532793]
[1753374843573,0.34304482,118750.0,118740.0,0.53632225]
[1753374843767,0.76868482,118750.0,118740.0,0.53532225]
[1753374844272,0.89495411,118750.0,118740.0,0.53532225]
[1753374844466,1.31395979,118750.0,118740.0,0.03025148]
[1753374844670,0.89495411,118750.0,118740.0,0.19859408]
[1753374846276,0.89495411,118750.0,118740.0,0.96919976]
[1753374846474,0.89495411,118750.0,118740.0,0.21532225]
[1753374846773,0.89495411,118750.0,118740.0,0.57532225]
[1753374847277,0.89495411,118750.0,118740.0,0.21532225]
[1753374847669,0.89495411,118750.0,118740.0,1.01682793]
[1753374847873,0.76868482,118750.0,118740.0,1.01782793]
[1753374848372,0.76868482,118750.0,118740.0,0.97244828]
[1753374848572,0.70006482,118750.0,118740.0,0.97244828]
[1753374848780,0.34304482,118750.0,118740.0,0.97244828]
[1753374848978,0.17471632,118750.0,118740.0,1.81433993]
[1753374849275,0.12698632,118750.0,118740.0,1.81433993]
[1753374849470,0.29531482,118750.0,118740.0,1.81433993]
[1753374849673,0.34293482,118750.0,118740.0,1.81433993]
[1753374850278,0.17460632,118750.0,118740.0,1.81433993]
[1753374850577,0.17460632,118750.0,118740.0,1.88089973]
[1753374850778,0.17660632,118750.0,118740.0,1.88089973]
[1753374851478,0.12898632,118750.0,118740.0,1.88089973]
[1753374851778,0.12898632,118750.0,118740.0,1.83552008]
[1753374852075,0.36221235,118750.0,118740.0,1.4153944]
[1753374852280,0.36221235,118750.0,118740.0,1.83440008]
[1753374852468,0.36221235,118750.0,118740.0,1.20744008]
[1753374852673,0.36221235,118750.0,118740.0,1.83452008]
[1753374853575,0.19388385,118750.0,118740.0,1.83452008]
[1753374853777,0.36221235,118750.0,118740.0,1.83452008]
[1753374854779,0.19388385,118750.0,118740.0,1.83452008]
[1753374855681,0.19388385,118750.0,118740.0,1.66608808]
[1753374855879,0.19388385,118750.0,118740.0,1.93268808]
[1753374856079,0.36221235,118750.0,118740.0,1.93268808]
[1753374856779,0.19388385,118750.0,118740.0,1.93268808]
[1753374860477,0.14626385,118750.0,118740.0,1.93268808]
[1753374860682,0.14626385,118750.0,118740.0,1.5136824]
[1753374860870,0.14626385,118750.0,118740.0,1.93268808]
[1753374861983,0.12898632,118750.0,118740.0,1.9781032]
[1753374862180,0.17560632,118750.0,118740.0,1.9781032]
[1753374862482,0.17360632,118750.0,118740.0,1.9781032]
[1753374863377,0.17360632,118750.0,118740.0,1.9791032]
[1753374863586,0.19088148,118750.0,118740.0,1.9791032]
[1753374864176,0.35920998,118750.0,118740.0,1.9791032]
[1753374865283,0.19088148,118750.0,118740.0,1.9791032]
[1753374865687,0.35920998,118750.0,118740.0,1.9791032]
[1753374866283,0.17360632,118750.0,118740.0,1.56009752]
[1753374866478,0.17360632,118750.0,118740.0,1.9791032]
[1753374866681,0.35921061,118750.0,118740.0,1.9791032]
[1753374866880,0.19088211,118750.0,118740.0,1.9791032]
[1753374867281,0.39153061,118750.0,118740.0,1.3520232]
[1753374867483,0.79136061,118750.0,118740.0,1.9769032]
[1753374867684,0.79136061,118750.0,118740.0,1.7103032]
[1753374867879,0.79136061,118750.0,118740.0,1.29129752]
[1753374868079,0.79136061,118750.0,118740.0,1.7103032]
[1753374869090,0.79136061,118750.0,118740.0,1.29129752]
[1753374869286,0.79136061,118750.0,118740.0,1.64872452]
[1753374869589,0.62303211,118750.0,118740.0,1.64872452]
[1753374869791,0.62303211,118750.0,118740.0,1.64972452]
[1753374870792,0.79136061,118750.0,118740.0,1.64972452]
[1753374870986,0.79136061,118750.0,118740.0,1.64872452]
[1753374872687,0.79136061,118750.0,118740.0,1.29129752]
[1753374872887,0.79136061,118750.0,118740.0,1.64872452]
[1753374873194,0.62303211,118750.0,118740.0,1.64972452]
[1753374874189,0.14326211,118750.0,118740.0,1.64972452]
[1753374874503,0.12598632,118750.0,118740.0,1.7727414]
[1753374875085,0.19088588,118750.0,118740.0,1.81819149]
[1753374875292,0.19088588,118750.0,118740.0,1.64975949]
[1753374875694,0.17360632,118750.0,118740.0,1.64975949]
[1753374876084,0.19088617,118750.0,118740.0,1.64975949]
[1753374878388,0.19088617,118750.0,118740.0,1.29233249]
[1753374878592,0.19088617,118750.0,118740.0,1.64975949]
[1753374879595,0.19088681,118750.0,118740.0,1.91635949]
[1753374879895,0.04615,118760.0,118750.0,0.1709285]
[1753374880197,0.04615,118770.0,118760.0,0.1709143]
[1753374880401,0.17241929,118770.0,118760.0,1.8406483]
[1753374880593,0.29817334,118770.0,118760.0,1.87094018]
[1753374880990,0.62790344,118770.0,118760.0,1.51351318]
[1753374881199,0.77820344,118770.0,118760.0,1.51351318]
[1753374881399,0.89227344,118770.0,118760.0,1.51351318]
[1753374881605,0.72397334,118770.0,118760.0,1.52867139]
[1753374881795,0.65360334,118770.0,118760.0,1.52867139]
[1753374882095,0.37810334,118770.0,118760.0,1.52867139]
[1753374882300,0.54640344,118770.0,118760.0,1.51350445]
[1753374882702,0.77820344,118770.0,118760.0,1.51350445]
[1753374882908,0.89227344,118770.0,118760.0,1.51350445]
[1753374883095,0.89227344,118770.0,118760.0,1.5165605]
[1753374883495,0.72397334,118770.0,118760.0,1.5165605]
[1753374883999,0.89227344,118770.0,118760.0,1.5165605]
[1753374884209,0.37910334,118770.0,118760.0,1.5165605]
[1753374884392,0.38110334,118770.0,118760.0,1.5165605]
[1753374884599,0.38110334,118770.0,118760.0,1.8739875]
[1753374884802,0.38110334,118770.0,118760.0,1.5165605]
[1753374885705,0.54940344,118770.0,118760.0,1.5165605]
[1753374886008,0.54940344,118770.0,118760.0,0.26859745]
[1753374886009,1.87662044,118770.0,118760.0,0.26859745]
[1753374886309,1.87662044,118770.0,118760.0,0.2383143]
[1753374886708,1.87976802,118770.0,118760.0,0.07]
[1753374887098,1.52234102,118770.0,118760.0,0.2383143]
[1753374887306,1.94123466,118770.0,118760.0,0.2383143]
[1753374887800,1.52234102,118770.0,118760.0,0.2383143]
[1753374888005,1.94123466,118770.0,118760.0,0.2383143]
[1753374888197,1.93808708,118770.0,118760.0,0.2383143]
[1753374888397,1.51919344,118770.0,118760.0,0.2383143]
[1753374889414,1.51919344,118770.0,118760.0,0.5283143]
[1753374889624,1.51919344,118770.0,118760.0,0.1683143]
[1753374890616,1.51919344,118770.0,118760.0,0.1783143]
[1753374891317,1.58523763,118770.0,118760.0,0.1783143]
[1753374893111,0.96131763,118770.0,118760.0,0.1783143]
[1753374893311,1.58363763,118770.0,118760.0,0.1783143]
[1753374895914,1.51759344,118770.0,118760.0,0.1783143]
[1753374896215,1.38992415,118770.0,118760.0,0.89880794]
[1753374896422,1.51619344,118770.0,118760.0,0.1999143]
[1753374898223,1.51619344,118770.0,118760.0,0.1983143]
[1753374898613,1.51619344,118770.0,118760.0,0.5283143]
[1753374898918,1.51619344,118770.0,118760.0,0.59720794]
[1753374899116,1.51619344,118770.0,118760.0,0.1783143]
[1753374900220,1.51619344,118770.0,118760.0,0.01]
[1753374900419,0.6402643,118760.0,118750.0,0.32485265]
[1753374900724,1.311433,118760.0,118750.0,0.2883285]
[1753374900929,1.311433,118760.0,118750.0,0.12]
[1753374901222,0.6402785,118750.0,118740.0,0.04278315]
[1753374901423,1.80704143,118750.0,118740.0,0.04278315]
[1753374901617,1.9330472,118750.0,118740.0,0.04278315]
[1753374902021,1.9330472,118750.0,118740.0,0.1808426]
[1753374902217,1.9330472,118750.0,118740.0,0.0125]
[1753374902524,0.640321,118720.0,118710.0,0.28284565]
[1753374902727,1.80680393,118720.0,118710.0,0.64284565]
[1753374903031,1.93393848,118720.0,118710.0,0.39028315]
[1753374903330,1.93393848,118720.0,118710.0,0.36]
[1753374903716,1.93393848,118720.0,118710.0,0.362]
[1753374904324,0.3623852,118710.0,118700.0,0.03528315]
[1753374904526,0.76660449,118710.0,118700.0,0.53368255]
[1753374904726,0.89309734,118710.0,118700.0,0.53368255]
[1753374905126,1.51385734,118710.0,118700.0,0.53368255]
[1753374906628,1.51385734,118710.0,118700.0,0.53468255]
[1753374906928,1.51385734,118710.0,118700.0,0.53668255]
[1753374908027,1.87160975,118710.0,118700.0,0.53668255]
[1753374908223,1.87160975,118710.0,118700.0,0.5063994]
[1753374909426,1.51385734,118710.0,118700.0,0.5063994]
[1753374909926,1.51385734,118710.0,118700.0,0.86415181]
[1753374910228,0.59844285,118710.0,118700.0,1.08969181]
[1753374910526,0.72471214,118710.0,118700.0,1.13486181]
[1753374910723,1.21880285,118710.0,118700.0,1.13496303]
[1753374910927,0.84181285,118710.0,118700.0,1.13496303]
[1753374911118,0.45588285,118710.0,118700.0,1.13496303]
[1753374911322,1.07600285,118710.0,118700.0,1.13496303]
[1753374911731,1.38656805,118710.0,118700.0,0.77721062]
[1753374911924,1.38656805,118710.0,118700.0,1.08979303]
[1753374912423,1.38656805,118710.0,118700.0,0.73204062]
[1753374912625,1.38656805,118710.0,118700.0,1.08979303]
[1753374913222,1.38656805,118710.0,118700.0,1.13509404]
[1753374913827,1.51283734,118710.0,118700.0,0.62180163]
[1753374914131,1.51283734,118710.0,118700.0,0.55180163]
[1753374914330,1.51283734,118710.0,118700.0,0.50650062]
[1753374914828,1.87058975,118710.0,118700.0,0.00810122]
[1753374915033,2.03907775,118710.0,118700.0,0.00810122]
[1753374915534,2.03907775,118710.0,118700.0,0.17650062]
[1753374916233,2.03907775,118710.0,118700.0,0.00810122]
[1753374916433,0.44741,118660.0,118650.0,5.89534071]
[1753374916627,1.94161092,118660.0,118650.0,4.55620056]
[1753374916832,2.12952392,118660.0,118650.0,4.55620056]
[1753374917333,2.19154271,118660.0,118650.0,4.55620056]
[1753374917828,2.19174271,118660.0,118650.0,4.55620056]
[1753374918426,2.61151391,118660.0,118650.0,4.55620056]
[1753374918630,2.61151391,118660.0,118650.0,2.89810348]
[1753374918825,2.61351391,118660.0,118650.0,2.4969485]
[1753374919019,2.61351391,118660.0,118650.0,1.43960419]
[1753374919221,2.69779185,118660.0,118650.0,0.88410552]
[1753374919430,0.1625271,118610.0,118600.0,0.005]
[1753374919632,0.1685414,118600.0,118590.0,0.04017]
[1753374919821,0.1685556,118590.0,118580.0,0.0001]
[1753374920030,1.2098468,118590.0,118580.0,0.0001]
[1753374920235,1.33661458,118590.0,118580.0,0.0001]
[1753374920927,1.33677458,118590.0,118580.0,0.0001]
[1753374921125,0.91700338,118590.0,118580.0,0.0001]
[1753374921435,0.12676778,118590.0,118580.0,0.1686698]
[1753374921629,0.74840778,118590.0,118580.0,0.4403798]
[1753374921836,0.74848778,118590.0,118580.0,2.545601]
[1753374922027,0.74848778,118590.0,118580.0,1.702911]
[1753374922332,0.74868778,118590.0,118580.0,2.855601]
[1753374922535,0.91924338,118590.0,118580.0,2.4368298]
[1753374922830,0.91924338,118590.0,118580.0,1.9002898]
[1753374923035,0.92024338,118590.0,118580.0,1.9002898]
[1753374923332,1.33801458,118590.0,118580.0,0.2138398]
[1753374923533,1.33801458,118590.0,118580.0,0.0001]
[1753374923730,1.34301458,118590.0,118580.0,0.0001]
[1753374924530,0.92324338,118590.0,118580.0,0.0001]
[1753374924729,1.34301458,118590.0,118580.0,0.0001]
[1753374924930,0.92324338,118590.0,118580.0,0.0001]
[1753374925325,0.75468778,118590.0,118580.0,0.1686698]
[1753374925527,0.92324338,118590.0,118580.0,0.3728298]
[1753374925728,0.75468778,118590.0,118580.0,2.1258298]
[1753374925927,0.75468778,118590.0,118580.0,1.702911]
[1753374926234,0.75544778,118590.0,118580.0,2.1258298]
[1753374926424,0.75544778,118590.0,118580.0,2.865601]
[1753374926632,0.75544778,118590.0,118580.0,2.895601]
[1753374926933,0.13276778,118590.0,118580.0,2.895601]
[1753374928031,0.13276778,118590.0,118580.0,2.4758298]
[1753374928232,0.13276778,118590.0,118580.0,2.895601]
[1753374928633,0.62248,118610.0,118600.0,0.4402514]
[1753374928832,1.5150625,118620.0,118610.0,0.4402371]
[1753374929028,0.1685038,118630.0,118620.0,0.2136829]
[1753374929234,0.2527386,118640.0,118630.0,0.2136687]
[1753374929535,1.08720604,118640.0,118630.0,0.7924299]
[1753374929734,1.08720604,118640.0,118630.0,1.6351899]
[1753374929940,1.08720604,118640.0,118630.0,0.04517]
[1753374930740,1.08720604,118640.0,118630.0,1.0564287]
[1753374931140,1.09520604,118640.0,118630.0,1.0574287]
[1753374931342,1.09520604,118640.0,118630.0,0.88893]
[1753374931836,1.09520604,118640.0,118630.0,1.0574287]
[1753374932443,1.09520604,118640.0,118630.0,0.88893]
[1753374933246,1.09520604,118640.0,118630.0,1.0574287]
[1753374933833,1.51497724,118640.0,118630.0,0.001]
[1753374934038,0.1685129,118620.0,118610.0,0.04517]
[1753374934344,0.80959233,118620.0,118610.0,0.04517]
[1753374934943,0.93599277,118620.0,118610.0,2.4779083]
[1753374935143,0.93599277,118620.0,118610.0,1.73062]
[1753374935336,0.91679334,118620.0,118610.0,1.73062]
[1753374935845,0.91679334,118620.0,118610.0,1.73162]
[1753374935846,0.92079334,118620.0,118610.0,1.73162]
[1753374936735,0.93996891,118620.0,118610.0,1.9001471]
[1753374936945,0.93996891,118620.0,118610.0,2.0591371]
[1753374937133,0.14957601,118620.0,118610.0,1.2010083]
[1753374937333,0.13040044,118620.0,118610.0,2.8864583]
[1753374937535,0.008,118640.0,118630.0,0.4402087]
[1753374937838,0.008,118640.0,118630.0,2.8554299]
[1753374938040,0.2526985,118660.0,118650.0,0.1684703]
[1753374938234,0.0842266,118670.0,118660.0,0.3726161]
[1753374938440,0.2526786,118670.0,118660.0,1.7026273]
[1753374938642,1.0011708,118670.0,118660.0,2.5453473]
[1753374938836,0.3797308,118670.0,118660.0,2.5453473]
[1753374939037,1.0011708,118670.0,118660.0,0.04517]
[1753374940642,1.0011708,118670.0,118660.0,0.2136261]
[1753374941141,1.0021708,118670.0,118660.0,0.2196261]
[1753374941340,0.9600575,118670.0,118660.0,2.5659073]
[1753374941541,0.9179442,118670.0,118660.0,1.7232173]
[1753374941740,0.9179442,118670.0,118660.0,2.5659073]
[1753374941947,0.9179442,118670.0,118660.0,2.1461361]
[1753374942141,0.9179442,118670.0,118660.0,2.5659073]
[1753374942336,0.9179442,118670.0,118660.0,1.7231873]
[1753374942541,0.9179442,118670.0,118660.0,2.5659073]
[1753374942844,0.9179341,118670.0,118660.0,2.5659073]
[1753374943340,0.9179341,118670.0,118660.0,2.1461361]
[1753374943540,0.9169341,118670.0,118660.0,2.1401361]
[1753374943746,0.9219341,118670.0,118660.0,2.3914512]
[1753374943942,0.9219341,118670.0,118660.0,2.5599073]
[1753374944142,0.9219341,118670.0,118660.0,2.1401361]
[1753374944547,0.9219341,118670.0,118660.0,2.5599073]
[1753374944743,0.9219341,118670.0,118660.0,1.0563461]
[1753374944949,0.9219341,118670.0,118660.0,1.73058]
[1753374945148,0.9219341,118670.0,118660.0,0.04517]
[1753374945349,0.9219341,118670.0,118660.0,0.2146261]
[1753374946042,0.9219341,118670.0,118660.0,0.8754973]
[1753374946651,0.9219341,118670.0,118660.0,2.5609073]
[1753374947452,0.9219341,118670.0,118660.0,2.3924512]
[1753374947846,0.9219341,118670.0,118660.0,1.97268]
[1753374948052,0.9219341,118670.0,118660.0,2.3924512]
[1753374948853,0.9219341,118670.0,118660.0,1.97268]
[1753374949353,0.9219341,118670.0,118660.0,1.98518]
[1753374949954,1.00104937,118670.0,118660.0,1.98518]
[1753374950349,0.94125854,118670.0,118660.0,1.98518]
[1753374950550,0.94125854,118670.0,118660.0,0.05867]
[1753374950551,1.36102974,118670.0,118660.0,0.05867]
[1753374950850,1.42082057,118670.0,118660.0,0.0135]
[1753374951653,0.1684561,118660.0,118650.0,0.04667]
[1753374951850,0.1684561,118660.0,118640.0,0.17174]
[1753374951851,0.1684845,118640.0,118630.0,0.04667]
[1753374952154,0.80612894,118640.0,118630.0,0.04667]
[1753374952358,0.88086748,118640.0,118630.0,0.04667]
[1753374952562,1.0074461,118640.0,118630.0,0.04667]
[1753374952959,1.0074461,118640.0,118630.0,0.04767]
[1753374953155,1.0074461,118640.0,118630.0,0.2161687]
[1753374953563,1.0074461,118640.0,118630.0,0.3879087]
[1753374953955,1.0074461,118640.0,118630.0,0.28877]
[1753374954155,1.0074461,118640.0,118630.0,0.001]
[1753374954353,0.1684987,118630.0,118620.0,0.04667]
[1753374954552,0.26268089,118630.0,118620.0,0.04667]
[1753374954752,0.1685129,118620.0,118610.0,0.3402555]
[1753374954960,0.88969684,118620.0,118610.0,0.04667]
[1753374955161,0.93182814,118620.0,118610.0,0.04667]
[1753374955666,0.99172444,118620.0,118610.0,0.04667]
[1753374956065,0.99172444,118620.0,118590.0,0.2411]
[1753374956066,0.1685413,118600.0,118590.0,0.2411]
[1753374956265,0.80558574,118600.0,118590.0,1.41379]
[1753374956566,0.80558574,118600.0,118590.0,1.6290156]
[1753374957059,0.80558574,118600.0,118590.0,2.4717756]
[1753374957264,0.31478039,118600.0,118590.0,2.8915468]
[1753374957461,0.93418039,118600.0,118590.0,0.5452256]
[1753374957665,0.93418039,118600.0,118590.0,1.1911]
[1753374957862,0.93418039,118600.0,118590.0,1.3596556]
[1753374958062,0.93418039,118600.0,118590.0,1.4290156]
[1753374958561,0.93418039,118600.0,118590.0,1.4290856]
[1753374958766,0.93418039,118600.0,118590.0,2.2717756]
[1753374959161,0.31678039,118600.0,118590.0,2.6915468]
[1753374959362,0.93390039,118600.0,118590.0,2.6915468]
[1753374959858,0.93390039,118600.0,118590.0,2.2717756]
[1753374960366,0.97882134,118600.0,118590.0,2.6915468]
[1753374960764,0.97882134,118600.0,118590.0,2.2717756]
[1753374961161,0.97882134,118600.0,118590.0,2.5615468]
[1753374961570,1.39859254,118600.0,118590.0,0.04667]
[1753374961766,1.35367159,118600.0,118590.0,0.04667]
[1753374961964,0.93390039,118600.0,118590.0,0.04667]
[1753374964360,0.1685556,118590.0,118580.0,0.04677]
[1753374964666,0.18788004,118590.0,118580.0,0.2153398]
[1753374964868,0.31494999,118590.0,118580.0,0.2153398]
[1753374965166,0.31494999,118590.0,118580.0,0.04677]
[1753374965674,0.31494999,118590.0,118580.0,0.04777]
[1753374965972,0.73572119,118590.0,118580.0,0.04777]
[1753374966366,0.31594999,118590.0,118580.0,0.04777]
[1753374966869,0.31594999,118590.0,118580.0,1.719971]
[1753374967072,0.93642999,118590.0,118580.0,2.562661]
[1753374967370,0.93646999,118590.0,118580.0,2.562661]
[1753374967571,0.76787439,118590.0,118580.0,2.892661]
[1753374968374,0.93642999,118590.0,118580.0,2.892661]
[1753374968767,0.93642999,118590.0,118580.0,2.4728898]
[1753374968968,0.93642999,118590.0,118580.0,1.97432]
[1753374969169,1.35620119,118590.0,118580.0,1.0622]
[1753374969363,0.93642999,118590.0,118580.0,0.89046]
[1753374969564,0.93642999,118590.0,118580.0,0.04777]
[1753374969764,0.31594999,118590.0,118580.0,2.15014244]
[1753374969965,0.31594999,118590.0,118580.0,2.16264244]
[1753374970168,0.31594999,118590.0,118580.0,2.58241364]
[1753374970972,0.31594999,118590.0,118580.0,2.96241364]
[1753374971168,0.31594999,118590.0,118580.0,2.58241364]
[1753374972276,0.31594999,118590.0,118580.0,2.16264244]
[1753374972479,0.31594999,118590.0,118580.0,2.58241364]
[1753374972678,0.31594999,118590.0,118580.0,2.16264244]
[1753374973574,0.31594999,118590.0,118580.0,2.58241364]
[1753374974371,0.31594999,118590.0,118580.0,2.16264244]
[1753374974570,0.31594999,118590.0,118580.0,1.99407264]
[1753374974771,0.31594999,118590.0,118580.0,2.41384384]
[1753374975274,0.31594999,118590.0,118580.0,2.58241364]
[1753374976270,0.31594999,118590.0,118580.0,2.41384384]
[1753374976672,0.31594999,118590.0,118580.0,2.58241364]
[1753374977274,0.31594999,118590.0,118580.0,2.41384384]
[1753374977577,0.31594999,118590.0,118580.0,1.99407264]
[1753374977776,0.31594999,118590.0,118580.0,2.41384384]
[1753374978080,0.31594999,118590.0,118580.0,2.18142264]
[1753374978875,0.31594999,118590.0,118580.0,2.16421]
[1753374979073,0.31594999,118590.0,118580.0,1.09232]
[1753374979273,0.31594999,118590.0,118580.0,0.06027]
[1753374979975,0.31594999,118590.0,118580.0,0.37083]
[1753374980772,0.31594999,118590.0,118580.0,0.47876]
[1753374981173,0.94546999,118590.0,118580.0,2.752551]
[1753374981776,0.94546999,118590.0,118580.0,2.3327798]
[1753374982367,0.94546999,118590.0,118580.0,1.909861]
[1753374982368,0.31594999,118590.0,118580.0,1.909861]
[1753374982573,0.94550999,118590.0,118580.0,2.3327798]
[1753374982774,0.94550999,118590.0,118580.0,2.752551]
[1753374986277,0.27657295,118620.0,118610.0,0.4683]
[1753374986483,1.0713355,118620.0,118610.0,1.7307612]
[1753374986781,1.21550595,118620.0,118610.0,2.15375]
[1753374986983,1.1705839,118620.0,118610.0,2.15375]
[1753374987477,1.63527715,118620.0,118610.0,0.04981]
[1753374987872,1.21750595,118620.0,118610.0,0.04981]
[1753374988071,0.4300556,118590.0,118580.0,0.27196]
[1753374988282,1.4785068,118590.0,118580.0,0.0126]
[1753374988487,1.18505174,118590.0,118580.0,0.0126]
[1753374988676,1.18505174,118590.0,118580.0,0.37297]
[1753374988879,1.60482294,118590.0,118580.0,0.37297]
[1753374989283,1.18505174,118590.0,118580.0,0.37297]
[1753374989484,1.18505174,118590.0,118580.0,0.37397]
[1753374989785,1.18605174,118590.0,118580.0,0.37397]
[1753374991283,2.44945174,118590.0,118580.0,0.37397]
[1753374992283,2.44945174,118590.0,118580.0,0.37406344]
[1753374992886,2.44865174,118590.0,118580.0,0.37406344]
[1753374993072,2.44865174,118590.0,118580.0,0.06350344]
[1753374993982,2.86842294,118590.0,118580.0,0.06350344]
[1753374994573,2.44865174,118590.0,118580.0,0.06350344]